fUSD/lending_fUSD_20260529
["ID","MTS","AMOUNT","RATE_DAILY","PERIOD"]
[423317317,1780054261000,-907.88,0.00029,2]
[423317318,1780054261000,-818.36,0.00029,2]
[423317320,1780054261000,-929.99999999,0.00029,2]
[423317314,1780054261000,-421.19,0.00029,2]
[423317329,1780054261000,-1400.23,0.00029,30]
[423317326,1780054261000,-1400.23,0.00029,30]
[423317328,1780054261000,-1400.23,0.00029,30]
[423317341,1780054261000,-1400.23,0.00029,30]
[423317331,1780054261000,-1400.23,0.00029,30]
[423317337,1780054261000,-1400.23,0.00029,30]
[423317330,1780054261000,-1400.23,0.00029,30]
[423317336,1780054261000,-1400.23,0.00029,30]
[423317333,1780054261000,-1400.23,0.00029,30]
[423317338,1780054261000,-1400.23,0.00029,30]
[423317335,1780054261000,-1400.23,0.00029,30]
[423317334,1780054261000,-1400.23,0.00029,30]
[423317332,1780054261000,-1400.23,0.00029,30]
[423317345,1780054261000,-1400.23,0.00029,30]
[423317351,1780054261000,-1400.23,0.00029,30]
[423317316,1780054261000,-2396.2,0.00029,2]
[423317339,1780054261000,-1400.23,0.00029,30]
[423317325,1780054261000,-1400.23,0.00029,30]
[423317288,1780054261000,-1000.0,0.00029,2]
[423317312,1780054261000,-930.00000001,0.00029,2]
[423317289,1780054261000,-2000.0,0.00029,2]
[423317285,1780054261000,-233.0,0.00029,3]
[423317286,1780054261000,-10296.13,0.00029,2]
[423317287,1780054261000,-2500.0,0.00029,2]
[423317290,1780054261000,-1000.0,0.00029,2]
[423317291,1780054261000,-2500.0,0.00029,2]
[423317293,1780054261000,-2500.0,0.00029,2]
[423317292,1780054261000,-2500.0,0.00029,2]
[423317296,1780054261000,-1000.0,0.00029,2]
[423317295,1780054261000,-2500.0,0.00029,2]
[423317297,1780054261000,-6345.83,0.00029,2]
[423317294,1780054261000,-1000.0,0.00029,2]
[423317298,1780054261000,-522.80424404,0.00029,2]
[423317299,1780054261000,-5000.0,0.00029,2]
[423317301,1780054261000,-310.33568882,0.00029,2]
[423317300,1780054261000,-500.0,0.00029,2]
[423317302,1780054261000,-55932.65,0.00029,14]
[423317306,1780054261000,-930.46485108,0.00029,2]
[423317303,1780054261000,-10000.0,0.00029,2]
[423317307,1780054261000,-930.02324255,0.00029,2]
[423317304,1780054261000,-1115.94043199,0.00029,2]
[423317308,1780054261000,-930.00116213,0.00029,2]
[423317309,1780054261000,-930.00005811,0.00029,2]
[423317305,1780054261000,-939.2970216,0.00029,2]
[423317311,1780054261000,-930.00000015,0.00029,2]
[423317310,1780054261000,-930.00000291,0.00029,2]
[423317313,1780054261000,-502.41,0.00029,2]
[423317315,1780054261000,-1009.69,0.00029,2]
[423317348,1780054261000,-1400.23,0.00029,30]
[423317347,1780054261000,-1400.23,0.00029,30]
[423317346,1780054261000,-1400.23,0.00029,30]
[423317378,1780054261000,-391.22,0.00029,8]
[423317386,1780054261000,-156.0,0.00029,2]
[423317380,1780054261000,-1000.0,0.00029,2]
[423317381,1780054261000,-6744.23,0.00029,7]
[423317387,1780054261000,-156.0,0.00029,2]
[423317388,1780054261000,-156.0,0.00029,2]
[423317382,1780054261000,-4866.78,0.00029,30]
[423317383,1780054261000,-4340.22,0.00029,30]
[423317384,1780054261000,-2168.01,0.00029,30]
[423317385,1780054261000,-160.0,0.00029,2]
[423317389,1780054261000,-156.0,0.00029,2]
[423317393,1780054261000,-161.0,0.00029,2]
[423317400,1780054261000,-3190.23638862,0.00029,2]
[423317397,1780054261000,-4503.27412532,0.00029,2]
[423317392,1780054261000,-1000.0,0.00029,2]
[423317390,1780054261000,-156.0,0.00029,2]
[423317399,1780054261000,-331.3543617,0.00029,2]
[423317401,1780054261000,-3100.77,0.00029,30]
[423317391,1780054261000,-156.0,0.00029,2]
[423317395,1780054261000,-160.0,0.00029,2]
[423317396,1780054261000,-193.88359574,0.00029,2]
[423317394,1780054261000,-160.0,0.00029,2]
[423317398,1780054261000,-2000.0,0.00029,7]
[423317402,1780054261000,-4323.57,0.00029,30]
[423317404,1780054261000,-1000.0,0.00029,2]
[423317403,1780054261000,-2167.71,0.00029,30]
[423317343,1780054261000,-1400.23,0.00029,30]
[423317379,1780054261000,-500.0,0.00029,2]
[423317377,1780054261000,-391.22,0.00029,9]
[423317364,1780054261000,-1400.23,0.00029,30]
[423317372,1780054261000,-1400.23,0.00029,30]
[423317342,1780054261000,-1400.23,0.00029,30]
[423317340,1780054261000,-1400.23,0.00029,30]
[423317344,1780054261000,-1400.23,0.00029,30]
[423317349,1780054261000,-1400.23,0.00029,30]
[423317350,1780054261000,-1400.23,0.00029,30]
[423317354,1780054261000,-1400.23,0.00029,30]
[423317375,1780054261000,-155.0,0.00029,2]
[423317353,1780054261000,-1400.23,0.00029,30]
[423317355,1780054261000,-1400.23,0.00029,30]
[423317356,1780054261000,-1400.23,0.00029,30]
[423317357,1780054261000,-1400.23,0.00029,30]
[423317359,1780054261000,-1400.23,0.00029,30]
[423317363,1780054261000,-1400.23,0.00029,30]
[423317352,1780054261000,-1400.23,0.00029,30]
[423317362,1780054261000,-1400.23,0.00029,30]
[423317373,1780054261000,-155.0,0.00029,2]
[423317367,1780054261000,-1400.23,0.00029,30]
[423317369,1780054261000,-1400.23,0.00029,30]
[423317370,1780054261000,-1400.23,0.00029,30]
[423317371,1780054261000,-1400.23,0.00029,30]
[423317368,1780054261000,-1400.23,0.00029,30]
[423317365,1780054261000,-1400.23,0.00029,30]
[423317376,1780054261000,-391.22,0.00029,8]
[423317366,1780054261000,-1400.23,0.00029,30]
[423317361,1780054261000,-1400.23,0.00029,30]
[423317360,1780054261000,-1400.23,0.00029,30]
[423317374,1780054261000,-155.0,0.00029,2]
[423317358,1780054261000,-1400.23,0.00029,30]
[423317448,1780054262000,-2899.59889064,0.000295,56]
[423317443,1780054262000,-1879.51729164,0.000295,56]
[423317439,1780054262000,-1706.94495127,0.000295,56]
[423317440,1780054262000,-1706.94495127,0.000295,56]
[423317433,1780054262000,-176.77,0.00029485,120]
[423317437,1780054262000,-765.00467126,0.000295,56]
[423317449,1780054262000,-381.52569106,0.000295,37]
[423317441,1780054262000,-1832.30178095,0.000295,56]
[423317432,1780054262000,-2318.0,0.00029469,3]
[423317446,1780054262000,-2530.76057121,0.000295,56]
[423317438,1780054262000,-765.00467126,0.000295,56]
[423317445,1780054262000,-2052.08963207,0.000295,56]
[423317453,1780054262000,-338.66577444,0.000295,37]
[423317442,1780054262000,-1832.30178095,0.000295,56]
[423317444,1780054262000,-1879.51729164,0.000295,56]
[423317451,1780054262000,-754.05173807,0.000295,37]
[423317452,1780054262000,-338.66577444,0.000295,37]
[423317450,1780054262000,-381.52569106,0.000295,37]
[423317454,1780054262000,-1510.970504,0.000295,2]
[423317461,1780054262000,-500.0,0.00029535,2]
[423317455,1780054262000,-500.0,0.00029535,2]
[423317459,1780054262000,-500.0,0.00029535,2]
[423317460,1780054262000,-500.0,0.00029535,2]
[423317434,1780054262000,-150.0,0.000295,120]
[423317447,1780054262000,-2530.76057121,0.000295,56]
[423317435,1780054262000,-942.09036537,0.000295,56]
[423317416,1780054262000,-846.98,0.00029086,7]
[423317429,1780054262000,-152.0,0.00029382,27]
[423317412,1780054262000,-2000.0,0.00029037,2]
[423317406,1780054262000,-2014.53324,0.00029,2]
[423317409,1780054262000,-2014.53324,0.00029,2]
[423317405,1780054262000,-2014.53324,0.00029,2]
[423317408,1780054262000,-2014.53324,0.00029,2]
[423317410,1780054262000,-316.92418714,0.00029,2]
[423317411,1780054262000,-174.0,0.00029028,120]
[423317413,1780054262000,-1101.23,0.00029086,7]
[423317415,1780054262000,-1142.22,0.00029086,7]
[423317414,1780054262000,-1309.7,0.00029086,7]
[423317418,1780054262000,-200.04,0.000291,2]
[423317417,1780054262000,-402.83,0.000291,2]
[423317458,1780054262000,-500.0,0.00029535,2]
[423317419,1780054262000,-152.0,0.00029101,26]
[423317420,1780054262000,-162.0,0.00029101,120]
[423317422,1780054262000,-3000.0,0.0002911,60]
[423317421,1780054262000,-500.0,0.0002911,60]
[423317424,1780054262000,-338.0,0.00029218,120]
[423317423,1780054262000,-1827.9724626,0.0002915,7]
[423317425,1780054262000,-150.0,0.00029219,22]
[423317431,1780054262000,-55932.65,0.000294,14]
[423317430,1780054262000,-3000.0,0.00029384,60]
[423317428,1780054262000,-163.0,0.00029337,120]
[423317427,1780054262000,-3699.58,0.000293,7]
[423317436,1780054262000,-374.50946258,0.000295,37]
[423317426,1780054262000,-6580.74,0.000293,7]
[423317457,1780054262000,-500.0,0.00029535,2]
[423317407,1780054262000,-2014.53324,0.00029,2]
[423317462,1780054262000,-500.0,0.00029535,2]
[423317488,1780054262000,-306.04529791,0.00029857,7]
[423317493,1780054262000,-174.47523396,0.00029858,7]
[423317492,1780054262000,-361.1080406,0.00029858,7]
[423317490,1780054262000,-328.66708291,0.00029857,7]
[423317497,1780054262000,-317.29569364,0.00029859,7]
[423317496,1780054262000,-378.69149212,0.00029859,7]
[423317498,1780054262000,-220.18842306,0.00029859,7]
[423317507,1780054262000,-355.42004421,0.00029859,7]
[423317499,1780054262000,-306.79018042,0.00029859,7]
[423317500,1780054262000,-364.16575097,0.00029859,7]
[423317506,1780054262000,-322.64634909,0.00029859,7]
[423317495,1780054262000,-187.37709945,0.00029859,7]
[423317501,1780054262000,-200.21566514,0.00029859,7]
[423317502,1780054262000,-400.0994225,0.00029859,7]
[423317505,1780054262000,-381.7261872,0.00029859,7]
[423317509,1780054262000,-311.71566223,0.00029859,7]
[423317508,1780054262000,-345.48092696,0.00029859,7]
[423317510,1780054262000,-362.74653472,0.00029859,7]
[423317516,1780054262000,-152.55379499,0.00029859,7]
[423317515,1780054262000,-195.09795569,0.00029859,7]
[423317514,1780054262000,-334.79934925,0.00029859,7]
[423317512,1780054262000,-372.14909992,0.00029859,7]
[423317513,1780054262000,-241.13361198,0.00029859,7]
[423317511,1780054262000,-390.81280175,0.00029859,7]
[423317504,1780054262000,-325.98924988,0.00029859,7]
[423317485,1780054262000,-399.40137145,0.00029857,7]
[423317503,1780054262000,-176.47010589,0.00029859,7]
[423317489,1780054262000,-317.63106525,0.00029857,7]
[423317491,1780054262000,-313.46291996,0.00029857,7]
[423317463,1780054262000,-743.7,0.00029535,2]
[423317466,1780054262000,-152.0,0.00029663,28]
[423317470,1780054262000,-480.0,0.00029776,30]
[423317467,1780054262000,-155.0,0.00029704,3]
[423317471,1780054262000,-295.0,0.0002978,30]
[423317464,1780054262000,-355.0,0.00029588,14]
[423317469,1780054262000,-1682.0,0.00029776,30]
[423317465,1780054262000,-188.44606373,0.00029623,2]
[423317468,1780054262000,-665.80342144,0.00029746,30]
[423317472,1780054262000,-504.0,0.0002978,30]
[423317474,1780054262000,-2834.0,0.00029782,30]
[423317473,1780054262000,-203.0,0.00029781,120]
[423317456,1780054262000,-500.0,0.00029535,2]
[423317484,1780054262000,-1489.0,0.00029839,30]
[423317487,1780054262000,-350.09572379,0.00029857,7]
[423317475,1780054262000,-2582.0,0.00029782,30]
[423317494,1780054262000,-185.27180721,0.00029859,2]
[423317486,1780054262000,-372.86723845,0.00029857,7]
[423317480,1780054262000,-156.0,0.00029782,30]
[423317478,1780054262000,-2651.0,0.00029782,30]
[423317479,1780054262000,-1023.0,0.00029782,30]
[423317482,1780054262000,-55932.65,0.000298,14]
[423317476,1780054262000,-1108.0,0.00029782,30]
[423317483,1780054262000,-1177.0,0.00029822,30]
[423317477,1780054262000,-916.0,0.00029782,30]
[423317481,1780054262000,-1590.0,0.00029789,3]
[423317541,1780054263000,-411.78775674,0.00029897,7]
[423317535,1780054263000,-417.67385008,0.00029897,7]
[423317539,1780054263000,-317.24563307,0.00029897,7]
[423317536,1780054263000,-599.39815331,0.00029897,7]
[423317540,1780054263000,-385.05845463,0.00029897,7]
[423317543,1780054263000,-152.92019405,0.00029897,5]
[423317548,1780054263000,-365.0613177,0.00029939,2]
[423317546,1780054263000,-3155.0,0.000299,10]
[423317544,1780054263000,-629.79238073,0.00029897,7]
[423317545,1780054263000,-14712.28151701,0.000299,2]
[423317538,1780054263000,-231.85378954,0.00029897,7]
[423317553,1780054263000,-241.3416332,0.0002999,2]
[423317552,1780054263000,-152.0,0.00029944,29]
[423317550,1780054263000,-806.29971474,0.00029939,7]
[423317542,1780054263000,-344.36092522,0.00029897,7]
[423317537,1780054263000,-151.12671918,0.00029897,7]
[423317528,1780054263000,-168.69000495,0.00029897,7]
[423317533,1780054263000,-174.11467666,0.00029897,7]
[423317551,1780054263000,-411.13487159,0.00029939,7]
[423317517,1780054263000,-312.44483979,0.0002986,7]
[423317519,1780054263000,-362.22733164,0.0002986,7]
[423317520,1780054263000,-305.49452106,0.00029861,7]
[423317521,1780054263000,-304.56936387,0.00029861,7]
[423317518,1780054263000,-318.17527444,0.0002986,7]
[423317524,1780054263000,-358.91680101,0.00029891,7]
[423317523,1780054263000,-344.2926486,0.00029864,7]
[423317525,1780054263000,-530.4873092,0.00029897,7]
[423317526,1780054263000,-349.70921618,0.00029897,7]
[423317527,1780054263000,-681.53068837,0.00029897,7]
[423317529,1780054263000,-373.74903797,0.00029897,5]
[423317532,1780054263000,-306.88262031,0.00029897,7]
[423317530,1780054263000,-382.23955748,0.00029897,7]
[423317531,1780054263000,-330.57567857,0.00029897,7]
[423317534,1780054263000,-242.27716993,0.00029897,7]
[423317522,1780054263000,-300.99596558,0.00029861,7]
[423317547,1780054263000,-3000.0,0.00029932,60]
[423317554,1780054263000,-368.30440275,0.0003,30]
[423317573,1780054263000,-2045.37873131,0.0003,120]
[423317569,1780054263000,-587.29129787,0.0003,4]
[423317572,1780054263000,-1000.0,0.0003,2]
[423317571,1780054263000,-166.0,0.0003,120]
[423317578,1780054263000,-168.23998241,0.0003,120]
[423317586,1780054263000,-293.96,0.0003,10]
[423317588,1780054263000,-6014.684678,0.0003,3]
[423317587,1780054263000,-700.6375149,0.0003,5]
[423317579,1780054263000,-1030.64297803,0.0003,120]
[423317580,1780054263000,-317.8981638,0.0003,120]
[423317581,1780054263000,-825.02878041,0.0003,120]
[423317585,1780054263000,-1000.0,0.0003,120]
[423317582,1780054263000,-150.0,0.0003,120]
[423317584,1780054263000,-12881.58991453,0.0003,10]
[423317549,1780054263000,-390.67493354,0.00029939,7]
[423317574,1780054263000,-170.31631977,0.0003,120]
[423317570,1780054263000,-650.7916003,0.0003,120]
[423317583,1780054263000,-5137.0,0.0003,7]
[423317566,1780054263000,-516.23044344,0.0003,30]
[423317556,1780054263000,-368.30440275,0.0003,30]
[423317568,1780054263000,-1850.5020644,0.0003,2]
[423317565,1780054263000,-4449.37390831,0.0003,120]
[423317558,1780054263000,-1000.0,0.0003,2]
[423317563,1780054263000,-228.61382699,0.0003,120]
[423317561,1780054263000,-6580.74,0.0003,7]
[423317557,1780054263000,-1024.10465684,0.0003,38]
[423317562,1780054263000,-3699.58,0.0003,7]
[423317560,1780054263000,-2000.0,0.0003,5]
[423317559,1780054263000,-1000.0,0.0003,2]
[423317564,1780054263000,-342.09068401,0.0003,120]
[423317577,1780054263000,-165.9589188,0.0003,2]
[423317567,1780054263000,-1123.88887539,0.0003,2]
[423317575,1780054263000,-526.76267861,0.0003,30]
[423317555,1780054263000,-503.529,0.0003,120]
[423317576,1780054263000,-312.12756278,0.0003,5]
[423317626,1780054264000,-1003.99,0.00030137,2]
[423317624,1780054264000,-200.384655,0.00030137,7]
[423317635,1780054264000,-1267.91,0.00030184,7]
[423317625,1780054264000,-200.0,0.00030137,2]
[423317619,1780054264000,-532522.03742642,0.0003013,7]
[423317622,1780054264000,-151.0,0.00030137,7]
[423317616,1780054264000,-300.0,0.0003013,30]
[423317615,1780054264000,-307.26231511,0.0003013,120]
[423317627,1780054264000,-199.10707526,0.00030137,7]
[423317618,1780054264000,-2000.0,0.0003013,2]
[423317620,1780054264000,-347.02770364,0.00030135,120]
[423317633,1780054264000,-500.0,0.00030137,7]
[423317636,1780054264000,-1105.77,0.00030184,7]
[423317631,1780054264000,-997.47,0.00030137,120]
[423317628,1780054264000,-398.21415052,0.00030137,7]
[423317632,1780054264000,-617.44877499,0.00030137,2]
[423317630,1780054264000,-187.95218471,0.00030137,120]
[423317634,1780054264000,-1066.09,0.00030184,7]
[423317638,1780054264000,-15807.77177437,0.000302,2]
[423317637,1780054264000,-1476.69,0.000302,2]
[423317641,1780054264000,-152.0,0.00030226,30]
[423317645,1780054264000,-150.0,0.00030341,2]
[423317643,1780054264000,-188.44606373,0.00030275,2]
[423317639,1780054264000,-207.93001677,0.000302,120]
[423317617,1780054264000,-302.20023713,0.0003013,2]
[423317629,1780054264000,-745.62,0.00030137,43]
[423317621,1780054264000,-959.03,0.00030137,2]
[423317595,1780054264000,-5040.29363723,0.0003,4]
[423317612,1780054264000,-645.4828371,0.0003013,2]
[423317640,1780054264000,-1298.30307,0.000302,2]
[423317591,1780054264000,-200.0,0.0003,11]
[423317590,1780054264000,-203.37937694,0.0003,30]
[423317589,1780054264000,-6541.15423561,0.0003,2]
[423317599,1780054264000,-200.0,0.0003,2]
[423317592,1780054264000,-327.059999,0.0003,11]
[423317593,1780054264000,-1001.529,0.0003,120]
[423317598,1780054264000,-160.0,0.0003,120]
[423317596,1780054264000,-200.0,0.0003,2]
[423317597,1780054264000,-650.0,0.0003,2]
[423317594,1780054264000,-300.0,0.0003,60]
[423317601,1780054264000,-200.0,0.0003,2]
[423317611,1780054264000,-1734.22715031,0.0003013,30]
[423317600,1780054264000,-1000.0,0.0003,2]
[423317609,1780054264000,-2486.17397066,0.0003013,120]
[423317602,1780054264000,-1500.0,0.0003,2]
[423317604,1780054264000,-1490.41,0.00030082,120]
[423317603,1780054264000,-200.0,0.0003,2]
[423317610,1780054264000,-364.57,0.0003013,15]
[423317606,1780054264000,-151.0,0.00030127,7]
[423317607,1780054264000,-1093.0549929,0.0003013,2]
[423317605,1780054264000,-151.0,0.00030127,7]
[423317608,1780054264000,-1377.30077492,0.0003013,120]
[423317613,1780054264000,-3996.42206129,0.0003013,120]
[423317623,1780054264000,-151.0,0.00030137,7]
[423317614,1780054264000,-205.34319924,0.0003013,2]
[423317642,1780054264000,-7567.4,0.00030239,2]
[423317664,1780054264000,-541.66206089,0.00030748,7]
[423317647,1780054264000,-600.0,0.00030411,120]
[423317677,1780054264000,-475.94354045,0.00030749,7]
[423317678,1780054264000,-460.18527063,0.00030749,7]
[423317675,1780054264000,-370.54361442,0.00030749,2]
[423317680,1780054264000,-400.43133027,0.00030749,7]
[423317684,1780054264000,-488.98387481,0.0003075,7]
[423317689,1780054264000,-467.57349335,0.0003075,7]
[423317687,1780054264000,-533.13006631,0.0003075,7]
[423317681,1780054264000,-165.50411573,0.00030749,7]
[423317685,1780054264000,-572.5892808,0.0003075,7]
[423317682,1780054264000,-600.14913374,0.0003075,7]
[423317688,1780054264000,-518.22139044,0.0003075,7]
[423317691,1780054264000,-390.19591139,0.0003075,7]
[423317686,1780054264000,-483.96952364,0.0003075,7]
[423317690,1780054264000,-502.19902388,0.0003075,7]
[423317699,1780054264000,-543.34099747,0.0003075,7]
[423317696,1780054264000,-482.26722397,0.0003075,7]
[423317698,1780054264000,-477.26291166,0.0003075,7]
[423317693,1780054264000,-440.37684611,0.0003075,7]
[423317701,1780054264000,-458.24178159,0.00030751,7]
[423317692,1780054264000,-305.10758997,0.0003075,7]
[423317695,1780054264000,-586.21920263,0.0003075,7]
[423317694,1780054264000,-468.66725968,0.0003075,7]
[423317697,1780054264000,-558.22364988,0.0003075,7]
[423317700,1780054264000,-591.43456747,0.00030751,7]
[423317644,1780054264000,-176.77,0.00030334,120]
[423317672,1780054264000,-159.42494355,0.00030748,7]
[423317674,1780054264000,-348.95046792,0.00030749,7]
[423317683,1780054264000,-352.94021178,0.0003075,7]
[423317679,1780054264000,-546.24862645,0.00030749,7]
[423317676,1780054264000,-374.75419891,0.00030749,7]
[423317649,1780054264000,-161.0,0.00030429,3]
[423317655,1780054264000,-997.47,0.0003063,120]
[423317650,1780054264000,-2318.0,0.00030429,3]
[423317648,1780054264000,-2318.0,0.00030429,3]
[423317651,1780054264000,-150.0,0.000305,120]
[423317652,1780054264000,-152.0,0.00030507,31]
[423317656,1780054264000,-3134.77144865,0.000307,120]
[423317654,1780054264000,-3699.58,0.000306,7]
[423317653,1780054264000,-6580.74,0.000306,7]
[423317657,1780054264000,-6744.23,0.00030715,7]
[423317661,1780054264000,-525.14358569,0.00030747,7]
[423317667,1780054264000,-245.72979678,0.00030748,7]
[423317646,1780054264000,-997.47,0.00030384,120]
[423317665,1780054264000,-162.01615878,0.00030748,7]
[423317658,1780054264000,-212.11176841,0.00030746,2]
[423317671,1780054264000,-275.68661596,0.00030748,7]
[423317669,1780054264000,-152.41257321,0.00030748,7]
[423317670,1780054264000,-162.21557078,0.00030748,7]
[423317666,1780054264000,-207.00428148,0.00030748,7]
[423317702,1780054264000,-456.85404581,0.00030751,7]
[423317673,1780054264000,-150.7777502,0.00030749,7]
[423317662,1780054264000,-493.00062437,0.00030747,7]
[423317659,1780054264000,-599.10205717,0.00030747,7]
[423317668,1780054264000,-277.31540027,0.00030748,7]
[423317660,1780054264000,-559.30085767,0.00030747,7]
[423317663,1780054264000,-470.19437994,0.00030747,7]
[423317740,1780054265000,-348.22935332,0.00030788,7]
[423317743,1780054265000,-484.55433987,0.00030788,7]
[423317742,1780054265000,-201.40377158,0.00030788,7]
[423317731,1780054265000,-204.48231542,0.00030788,7]
[423317738,1780054265000,-228.99814346,0.00030788,7]
[423317749,1780054265000,-154.37760921,0.00030788,7]
[423317732,1780054265000,-280.93761709,0.00030788,2]
[423317727,1780054265000,-560.62355696,0.00030788,5]
[423317734,1780054265000,-293.88995501,0.00030788,2]
[423317741,1780054265000,-626.51077512,0.00030788,7]
[423317739,1780054265000,-460.32393047,0.00030788,7]
[423317745,1780054265000,-154.4990258,0.00030788,7]
[423317750,1780054265000,-250.76218008,0.00030788,7]
[423317746,1780054265000,-194.97431839,0.00030788,7]
[423317747,1780054265000,-243.4795262,0.00030788,7]
[423317744,1780054265000,-219.92388746,0.00030788,7]
[423317751,1780054265000,-224.90378685,0.00030788,7]
[423317761,1780054265000,-516.54138783,0.00030788,7]
[423317754,1780054265000,-899.09722996,0.00030788,7]
[423317755,1780054265000,-463.70757908,0.00030788,7]
[423317752,1780054265000,-220.71003072,0.00030788,7]
[423317759,1780054265000,-617.68163511,0.00030788,7]
[423317760,1780054265000,-597.32122579,0.00030788,7]
[423317758,1780054265000,-577.58768195,0.00030788,7]
[423317733,1780054265000,-259.13241421,0.00030788,2]
[423317748,1780054265000,-293.91397963,0.00030788,7]
[423317736,1780054265000,-495.86351786,0.00030788,7]
[423317703,1780054265000,-451.49394837,0.00030751,7]
[423317737,1780054265000,-249.54806209,0.00030788,7]
[423317704,1780054265000,-617.43178064,0.00030751,7]
[423317705,1780054265000,-500.0,0.00030754,60]
[423317706,1780054265000,-3000.0,0.00030754,60]
[423317707,1780054265000,-516.4389729,0.00030754,7]
[423317708,1780054265000,-1682.0,0.00030776,30]
[423317709,1780054265000,-480.0,0.00030776,30]
[423317712,1780054265000,-504.0,0.0003078,30]
[423317714,1780054265000,-2582.0,0.00030782,30]
[423317710,1780054265000,-1590.0,0.00030778,3]
[423317713,1780054265000,-2834.0,0.00030782,30]
[423317711,1780054265000,-295.0,0.0003078,30]
[423317716,1780054265000,-916.0,0.00030782,30]
[423317735,1780054265000,-203.0969762,0.00030788,7]
[423317715,1780054265000,-1108.0,0.00030782,30]
[423317718,1780054265000,-1023.0,0.00030782,30]
[423317720,1780054265000,-152.0,0.00030788,32]
[423317723,1780054265000,-524.56382427,0.00030788,7]
[423317724,1780054265000,-1022.29603255,0.00030788,7]
[423317722,1780054265000,-795.7309638,0.00030788,7]
[423317719,1780054265000,-538.37520152,0.00030782,7]
[423317721,1780054265000,-292.23308746,0.00030788,7]
[423317725,1780054265000,-337.38000991,0.00030788,7]
[423317726,1780054265000,-224.006469,0.00030788,7]
[423317729,1780054265000,-573.35933622,0.00030788,7]
[423317728,1780054265000,-166.89255691,0.00030788,7]
[423317730,1780054265000,-162.99682541,0.00030788,7]
[423317717,1780054265000,-2651.0,0.00030782,30]
[423317756,1780054265000,-475.86844961,0.00030788,7]
[423317757,1780054265000,-152.29490688,0.00030788,7]
[423317763,1780054265000,-305.84038809,0.00030788,5]
[423317791,1780054265000,-209.09056759,0.00031,120]
[423317795,1780054265000,-2318.0,0.00031055,3]
[423317794,1780054265000,-3000.0,0.00031028,60]
[423317796,1780054265000,-152.0,0.00031069,33]
[423317799,1780054265000,-1590.0,0.00031098,3]
[423317801,1780054265000,-163.0,0.00031098,3]
[423317800,1780054265000,-163.0,0.00031098,3]
[423317797,1780054265000,-176.77,0.00031074,120]
[423317798,1780054265000,-200.0,0.00031096,2]
[423317807,1780054265000,-492.23,0.000312,7]
[423317802,1780054265000,-997.47,0.00031123,120]
[423317805,1780054265000,-2318.0,0.00031198,3]
[423317803,1780054265000,-1590.0,0.00031128,3]
[423317804,1780054265000,-1590.0,0.00031198,3]
[423317806,1780054265000,-492.23,0.000312,7]
[423317809,1780054265000,-255.850003,0.000312,7]
[423317808,1780054265000,-745.319547,0.000312,7]
[423317810,1780054265000,-6580.74,0.000312,7]
[423317811,1780054265000,-3699.58,0.000312,7]
[423317813,1780054265000,-319.28,0.000312,7]
[423317814,1780054265000,-668.65185756,0.00031223,2]
[423317812,1780054265000,-484.775252,0.000312,7]
[423317816,1780054265000,-1590.0,0.00031227,3]
[423317753,1780054265000,-302.25343837,0.00030788,7]
[423317817,1780054265000,-166.39104305,0.00031339,7]
[423317792,1780054265000,-209.09056759,0.00031,120]
[423317793,1780054265000,-1590.0,0.00031019,3]
[423317815,1780054265000,-833.92535152,0.00031223,2]
[423317789,1780054265000,-283.61792291,0.00031,120]